[Event "Fredericia IM 2022"]
[Site "Fredericia"]
[Date "2022.05.28"]
[Round "7.3"]
[White "Bogdanov, Egor"]
[Black "Fries-Nielsen, Jens Ove"]
[Result "1/2-1/2"]
[ECO "B01"]
[WhiteElo "2415"]
[BlackElo "2370"]
[Annotator "TA"]
[PlyCount "67"]
[EventDate "2022.05.25"]
[EventType "tourn"]
[EventCountry "DEN"]
[SourceTitle "playchess.com"]
[Source "ChessBase"]
[SourceQuality "1"]
[TimeControl "40/5400+30:1800+30"]

{[%evp 9,67,38,29,22,28,21,22,16,31,18,24,32,25,22,29,25,30,32,18,29,25,16,19,16,19,0,36,-56,-55,-66,-44,-100,-92,-100,-108,-106,-93,-83,0,-77,-57,-81,-61,-64,-64,-65,-64,-67,-61,-63,-53,-55,-46,-65,-42,-58,-22,-22,-25,-29]} 1. e4 {[%emt 0:00:02]} d5 {[%emt 0:00:37]} 2. exd5 {[%emt 0:00:06]} Qxd5 {[%emt 0:00:04]} 3. Nc3 {[%emt 0:00:11]} Qe5+ {[%emt 0:00:03]} 4. Nge2 {[%emt 0:00:04]} Nf6 {[%emt 0:02:42]} 5. d4 {[%emt 0:00:06]} Qa5 {[%emt 0:00:06]} 6. g3 {[%emt 0:08:51] [#] B01: Scandinavian Defence.} Bg4 $146 {[%emt 0:04:38]} ({Predecessor:} 6... c6 7. Bg2 Bf5 8. O-O e6 9. Bd2 Qb6 10. Na4 Qc7 11. c4 Nbd7 12. Nac3 Be7 {0-1 (55) Papakonstantinou,D (2049)-Lin,D (2222) Tornelo INT 2021}) 7. Bg2 {[%emt 0:01:21]} Nc6 {[%emt 0:02:22]} 8. h3 {[%emt 0:02:05] The position is equal.} Bxe2 {[%emt 0:00:53]} 9. Bxc6+ {[%emt 0:00:53]} bxc6 {[%emt 0:00:16]} 10. Qxe2 {[%emt 0:00:02]} e6 {[%emt 0:12:21]} 11. O-O {[%emt 0:09:38]} Bd6 {[%emt 0:02:01]} 12. Qf3 {[%emt 0:00:47]} (12. Rd1 {keeps more tension.} Qf5 13. Kg2 O-O 14. Qd3) 12... O-O {[%emt 0:00:32]} 13. Kg2 {[%emt 0:04:15]} c5 {[%emt 0:04:48]} 14. d5 {[%emt 0:17:09]} Nxd5 {[%emt 0:01:43]} 15. Nxd5 {[%emt 0:00:05]} exd5 {[%emt 0:00:07]} 16. Qxd5 {[%emt 0:00:04]} Rad8 {[%emt 0:06:09][%cal Od6g3]} 17. Qf5 {[%emt 0:11:23]} Qa6 {[%emt 0:03:08]} 18. Be3 {[%emt 0:00:48]} (18. b3 $14) 18... Qb7+ $1 $15 {[%emt 0:00:47]} 19. Kg1 {[%emt 0:03:14]} Qxb2 {[%emt 0:00:24]} 20. c4 {[%emt 0:02:04]} (20. Rad1 $15) 20... Rfe8 $17 {[%emt 0:01:47]} 21. Rfd1 {[%emt 0:06:19]} g6 {[%emt 0:08:13]} 22. Qf3 {[%emt 0:00:45]} Qc2 {[%emt 0:00:51]} 23. Rac1 {[%emt 0:11:09]} Qb2 {[%emt 0:10:21]} ({Black should play} 23... Qxa2 $17 24. Qf6 Qe2) 24. Rd5 {[%emt 0:05:04]} (24. Ra1 $1 $11 {keeps the balance.}) 24... Re6 {[%emt 0:01:14]} ({Much worse is} 24... Qxa2 25. Qf6 Be7 26. Qe5 $11) 25. Rcd1 {[%emt 0:03:18]} Qxa2 {[%emt 0:01:37]} 26. Bxc5 {[%emt 0:02:56]} Qxc4 {[%emt 0:01:14]} 27. Bxa7 {[%emt 0:00:04][%cal Oa7c5]} Rde8 {[%emt 0:00:57]} 28. Be3 {[%emt 0:00:31]} h5 {[%emt 0:06:00]} 29. Kg2 {[%emt 0:00:18]} Rb8 {[%emt 0:03:20]} 30. R5d4 {[%emt 0:01:56]} Qb5 {[%emt 0:00:49]} 31. Rd5 {[%emt 0:00:19]} Qe8 {[%emt 0:01:11]} 32. Bc5 {[%emt 0:00:54][%cal Rc5d6]} Bxc5 {[%emt 0:07:57]} 33. Rxc5 {[%emt 0:00:07]} c6 {[%emt 0:00:18]} 34. Rdc1 {[%emt 0:00:32] Weighted Error Value: White=0.18 (very precise) /Black=0.09 (flawless)} 1/2-1/2

[Event "Fredericia IM 2022"]
[Site "Fredericia"]
[Date "2022.05.28"]
[Round "7.4"]
[White "Hilwerda, Jonas"]
[Black "Easwaralingam, Adesh"]
[Result "0-1"]
[ECO "B48"]
[WhiteElo "2275"]
[BlackElo "2116"]
[Annotator "TA"]
[PlyCount "68"]
[EventDate "2022.05.25"]
[EventType "tourn"]
[EventCountry "DEN"]
[SourceTitle "playchess.com"]
[Source "ChessBase"]
[SourceQuality "1"]
[TimeControl "40/5400+30:1800+30"]

{[%evp 11,68,35,26,4,11,3,4,-7,0,0,0,0,0,-22,-22,-32,0,0,0,-26,0,0,0,0,0,19,7,6,34,50,185,191,186,191,200,172,162,166,169,166,162,143,136,104,129,131,264,224,201,0,0,0,72,73,140,0,0,-29996,-29997]} 1. e4 {[%emt 0:01:57]} c5 {[%emt 0:00:14]} 2. Nf3 {[%emt 0:00:42]} e6 {[%emt 0:00:15]} 3. d4 {[%emt 0:00:16]} cxd4 {[%emt 0:00:07]} 4. Nxd4 {[%emt 0:00:05]} Nc6 {[%emt 0:00:14]} 5. Nc3 {[%emt 0:00:29][%cal Bb1c3,Bc3e2,Be2f4,Bf4h5][%mdl 32]} Qc7 {[%emt 0:00:17]} 6. Be3 {[%emt 0:00:35]} a6 {[%emt 0:00:08]} 7. g4 {[%emt 0:00:38] B48: Sicilian: Taimanov: 5 Nc3 Qc7 6 Be3 a6 without Be2.} b5 {[%emt 0:00:36][%cal Bb7b5,Bb5b4][%mdl 32]} 8. Nxc6 {[%emt 0:00:11]} Qxc6 {[%emt 0:00:09]} 9. Qd2 {[%emt 0:00:20] The position is equal.} b4 {[%emt 0:00:38]} 10. Ne2 {[%emt 0:00:22]} Qxe4 {[%emt 0:00:20]} 11. Rg1 {[%emt 0:00:05] And now Bg2 would win.} Qc6 {[%emt 0:00:19]} 12. O-O-O {[%emt 0:07:43] [#]} Bb7 $146 {[%emt 0:04:14]} ({Predecessor:} 12... d5 13. f4 Nf6 14. f5 Ne4 15. Qd3 Nc5 16. Bxc5 Bxc5 17. Rg3 Bd7 18. Rh3 Rc8 19. fxe6 Bxe6 {0-1 (45) Zverev,L (2163)-Radzhabov,R (2370) Cheliabinsk 2021}) 13. Nf4 {[%emt 0:09:15] Against Qd5} d5 {[%emt 0:08:14]} 14. Bd4 {[%emt 0:08:39]} Nf6 {[%emt 0:15:37]} 15. Bd3 {[%emt 0:01:08]} O-O-O {[%emt 0:01:59]} (15... Bc5 $5 {[%cal Rc5d4]} 16. Bxf6 gxf6 $15) 16. Nh5 {[%emt 0:11:11]} Ne4 {[%emt 0:05:45]} 17. Qe3 {[%emt 0:02:57]} f6 {[%emt 0:03:33]} 18. Bxe4 {[%emt 0:07:38]} dxe4 {[%emt 0:00:42]} 19. g5 {[%emt 0:00:33]} f5 {[%emt 0:11:59]} 20. Nxg7 {[%emt 0:02:54]} f4 {[%emt 0:01:26]} ({Black should play} 20... Rg8 $14 21. Nh5 Bd6) 21. Qb3 $1 $18 {[%emt 0:04:07]} (21. Qxf4 Rxd4 $1 22. Rxd4 Bxg7 23. Rxb4 Rf8 $11) 21... Bxg7 {[%emt 0:02:38]} (21... Rxd4 $2 22. Rxd4 Bc5 23. Rc4 (23. Qxe6+ Qxe6 24. Nxe6 Bxd4 $16) (23. Nxe6 Bxd4 24. Nxd4 Qc5 $16)) 22. Bxg7 {[%emt 0:00:02]} Rhg8 {[%emt 0:10:47]} 23. Bf6 {[%emt 0:10:48]} Rxd1+ {[%emt 0:03:17]} 24. Rxd1 {[%emt 0:00:02]} a5 {[%emt 0:00:28]} 25. Qh3 {[%emt 0:00:51]} Kb8 {[%emt 0:03:52] [#]} 26. Be5+ $1 {[%emt 0:09:29]} Ka8 {[%emt 0:00:05]} 27. Rd6 {[%emt 0:15:00]} Qb5 {[%emt 0:06:40]} 28. Bxf4 {[%emt 0:00:09]} (28. Qxh7 $2 Rc8 29. Qd7 Qxe5 $19) 28... Bd5 {[%emt 0:00:36]} (28... Rc8 $16 {is a better defense.}) 29. Qe3 {[%emt 0:02:16] Strongly threatening Qd4.} Rc8 {[%emt 0:01:07]} 30. Rb6 $2 {[%emt 0:00:34]} (30. Kd2 $18) 30... Qc4 $40 {[%emt 0:01:52][%csl Gc8][%cal Rc4c2][%mdl 128] Black mounts an attack.} 31. c3 {[%emt 0:01:27]} Qf1+ {[%emt 0:02:40]} (31... bxc3 32. bxc3 Rf8 33. Rb2 Qf1+ 34. Kd2) (31... Rf8 $11 32. Rd6 bxc3 33. bxc3 Rxf4 34. Rd8+ (34. Qxf4 Qf1+ 35. Kc2 Qd3+ 36. Kc1 Qf1+ 37. Kd2 Qd3+ 38. Ke1 Qb1+ 39. Ke2 Qd3+ 40. Ke1 Qb1+ 41. Ke2 Qd3+ 42. Ke1 $11) 34... Kb7 35. Qxf4 Qf1+ 36. Kd2 Qd3+ 37. Ke1 (37. Kc1 Qf1+ 38. Kd2 Qd3+ 39. Ke1 Qb1+ 40. Ke2 Qd3+ 41. Ke1 Qb1+ 42. Ke2 Qd3+ 43. Ke1 $11) 37... Qb1+ 38. Ke2 (38. Kd2 Qd3+ 39. Ke1 Qb1+ 40. Ke2 Qd3+ 41. Ke1 $11) 38... Qd3+ 39. Ke1 Qb1+ 40. Ke2 (40. Kd2 Qd3+ 41. Ke1 $11) 40... Qd3+ 41. Ke1) 32. Kd2 $16 {[%emt 0:01:15]} Qc4 {[%emt 0:01:41]} (32... Bxa2 $142 33. Qxe4+ (33. Qe2 Qxe2+ 34. Kxe2 bxc3 $14) 33... Bd5) 33. Bd6 {[%emt 0:01:02]} (33. Be5 $16) 33... Bb7 $11 {[%emt 0:02:55] The board is on fire.} 34. cxb4 $2 {[%emt 0:01:38][%mdl 8192]} (34. Qd4 $11 bxc3+ 35. bxc3) 34... Qc1+ {Weighted Error Value: White=0.44/Black=0.21 (precise)} 0-1

[Event "Fredericia IM 2022"]
[Site "Fredericia"]
[Date "2022.05.28"]
[Round "7.5"]
[White "Egilstoft, Rogvi"]
[Black "Boe, Mads"]
[Result "0-1"]
[ECO "B10"]
[WhiteElo "2334"]
[BlackElo "2293"]
[Annotator "TA"]
[PlyCount "104"]
[EventDate "2022.05.25"]
[EventType "tourn"]
[EventCountry "DEN"]
[SourceTitle "playchess.com"]
[Source "ChessBase"]
[SourceQuality "1"]
[TimeControl "40/5400+30:1800+30"]

{[%evp 9,104,-20,-40,-28,-4,3,23,22,25,28,25,25,27,23,20,9,28,18,14,0,0,0,10,0,16,8,33,29,44,33,40,9,23,4,18,-2,0,0,0,0,33,33,39,-14,0,-62,-9,-124,-139,-120,-123,-116,-110,-284,-120,-118,-101,-100,-76,-117,-126,-229,-97,-386,-386,-373,-373,-386,-386,-373,-356,-372,-372,-374,-372,-329,-224,-350,-216,-598,-452,-1222,-1075,-1226,-1195,-1401,-1106,-1214,-790,-4694,-5081,-12130,-7118,-5138,-5599,-29978,-29976]} 1. e4 {[%emt 0:00:46]} c6 {[%emt 0:00:10]} 2. g3 {[%emt 0:00:18]} d5 {[%emt 0:00:06]} 3. Bg2 {[%emt 0:00:42]} dxe4 {[%emt 0:00:39]} 4. Nc3 {[%emt 0:00:12]} Nf6 {[%emt 0:01:15]} 5. Nxe4 {[%emt 0:00:10]} Nxe4 {[%emt 0:00:25]} 6. Bxe4 {[%emt 0:00:07] B10: Caro-Kann: 2 d3 and 2 c4.} Nd7 {[%emt 0:00:05]} 7. Bg2 {[%emt 0:04:12]} Nf6 {[%emt 0:00:38]} 8. Nf3 {[%emt 0:00:53] White has an edge.} Bf5 {[%emt 0:03:11]} 9. d4 {[%emt 0:03:49]} e6 {[%emt 0:00:22]} 10. O-O {[%emt 0:01:48]} Be7 {[%emt 0:03:51]} 11. Re1 {[%emt 0:01:12]} h6 {[%emt 0:04:11]} 12. b3 {[%emt 0:04:30]} O-O {[%emt 0:00:18]} 13. Bb2 {[%emt 0:01:13] [#]} Qc7 $146 {[%emt 0:05:59]} ({Predecessor:} 13... a5 14. Ne5 a4 15. Qd2 Qb6 16. Nc4 Qc7 17. Rac1 axb3 18. axb3 Rfd8 19. Ra1 b5 20. Ne3 Bg6 {½-½ (31) Joentausta,H (2138)-Ronka,E (2277) Finland 2019}) 14. Qe2 {[%emt 0:01:51]} a5 {[%emt 0:03:37]} 15. a3 {[%emt 0:01:16]} Rfd8 {[%emt 0:16:39]} 16. h3 {[%emt 0:02:04]} Rac8 {[%emt 0:09:10]} 17. c4 {[%emt 0:10:12]} Bf8 {[%emt 0:03:22]} 18. Ne5 {[%emt 0:06:39]} Re8 {[%emt 0:09:57]} 19. Qf3 {[%emt 0:08:55]} Re7 {[%emt 0:11:33]} 20. Bc3 {[%emt 0:09:06]} Nd7 {[%emt 0:01:40]} 21. Nd3 {[%emt 0:01:25]} Ree8 {[%emt 0:01:14]} 22. Re2 {[%emt 0:05:23]} Bh7 {[%emt 0:00:37]} 23. Bb2 {[%emt 0:09:06]} Red8 {[%emt 0:00:47]} 24. Rd1 {[%emt 0:01:33]} c5 {[%emt 0:05:13]} 25. d5 {[%emt 0:07:28]} (25. Qxb7 cxd4 26. Qxc7 (26. Bxd4 Qxb7 27. Bxb7 Rb8 $17) 26... Rxc7 $15) 25... exd5 {[%emt 0:00:05]} 26. Qxd5 {[%emt 0:00:28]} ({Better is} 26. Ne5 $14 Nxe5 27. Bxe5) 26... a4 {[%emt 0:03:20] [#] aiming for ...Nb6.} (26... Nb6 $5 27. Qf3 a4 $11) 27. Red2 {[%emt 0:06:32]} ({Much weaker is} 27. bxa4 Nb6 28. Qf3 Nxc4 $17) (27. Qxf7+ $11 Kxf7 28. Bd5+ Kg6 29. Be4+ Kg5 30. f4+ Kh5 31. Bf3+ Kg6 32. Be4+ Kf7 33. Bd5+ Kg6 34. f5+ Kh5 35. Bf7+ g6 36. Nf4+ Qxf4 37. gxf4) 27... Nb6 {[%emt 0:02:26]} ({Black should play} 27... axb3 $15 28. Qf3 b5 29. cxb5 c4) 28. Qxb7 {[%emt 0:04:55]} (28. Qf3 $1 $11 {remains equal.}) 28... Qxb7 $17 {[%emt 0:00:53]} ({And not} 28... axb3 29. Qa6 $15) 29. Bxb7 {[%emt 0:00:01]} Rc7 $36 {[%emt 0:00:16][%mdl 2048] White is under strong pressure.} 30. Bd5 {[%emt 0:00:55]} axb3 {[%emt 0:02:14]} 31. Nc1 $2 {[%emt 0:02:46] [#]} (31. Ne5 $17 {might work better.} Nxd5 32. Rxd5) 31... Nxd5 {[%emt 0:02:32]} (31... Bc2 $1 $19 {[%cal Rc2d1] has better winning chances.} 32. Bxf7+ Rxf7 33. Rxd8 Nxc4) 32. Rxd5 {[%emt 0:00:02]} Rxd5 {[%emt 0:02:49]} 33. Rxd5 {[%emt 0:00:02]} Be7 {[%emt 0:01:22] Inhibits Rd8+.} 34. Kf1 {[%emt 0:02:10]} ({Don't blunder} 34. Nxb3 $2 Rb7 35. Re5 Kf8 $19) 34... Rb7 {[%emt 0:02:38]} 35. Rd2 {[%emt 0:04:21]} (35. Ne2 $17) 35... Bc2 {[%emt 0:00:06]} (35... Bf5 $19 {is more deadly.} 36. Nd3 Be6) 36. Ke2 $2 {[%emt 0:00:41][%mdl 8192]} (36. Nd3 $17 {was worth a try.}) 36... Bf6 $19 {[%emt 0:01:01]} 37. Bxf6 {[%emt 0:00:03]} gxf6 {[%emt 0:00:07]} 38. Rxc2 {[%emt 0:00:03]} bxc2 {[%emt 0:01:01][%mdl 4096] Endgame KR-KN} 39. Kd2 {[%emt 0:00:16]} Ra7 {[%emt 0:00:14]} 40. Kxc2 {[%emt 0:01:31]} Rxa3 {[%emt 0:00:06]} 41. Nd3 {[%emt 0:30:22]} Ra5 {[%emt 0:31:13]} 42. Kd2 {[%emt 0:00:33]} f5 {[%emt 0:02:32] Threatens to win with ...Kg7.} 43. Ke3 {[%emt 0:00:00]} (43. Nc1 {is the only way for White.}) 43... Kg7 {[%emt 0:00:00]} 44. g4 $2 {[%emt 0:00:00]} (44. Kd2 {nothing else works.}) 44... Kf6 {[%emt 0:00:00]} 45. f3 {[%emt 0:00:00]} (45. Kf4 $142 Ra4 46. Ne5) 45... Ra4 {[%emt 0:00:00]} 46. Nxc5 {[%emt 0:00:00]} Rxc4 {[%emt 0:00:00]} 47. Nd3 {[%emt 0:00:00]} Rc3 {[%emt 0:00:00] Hoping for ...Kg5.} 48. f4 {[%emt 0:00:00]} Ra3 {[%emt 0:00:00] ...Kg6 is the strong threat.} 49. Ke2 {[%emt 0:00:00]} Ke6 {[%emt 0:00:00]} 50. Nf2 {[%emt 0:00:00]} fxg4 {[%emt 0:00:00]} 51. hxg4 {[%emt 0:00:00]} f5 {[%emt 0:00:00] ( -> ...fxg4)} 52. gxf5+ {[%emt 0:00:00]} Kxf5 {[%emt 0:00:00] Weighted Error Value: White=0.99/Black=0.18 (very precise)} 0-1

[Event "Fredericia IM 2022"]
[Site "Fredericia"]
[Date "2022.05.29"]
[Round "8.1"]
[White "Bogdanov, Egor"]
[Black "Storme, Isak"]
[Result "1/2-1/2"]
[ECO "C54"]
[WhiteElo "2415"]
[BlackElo "2388"]
[Annotator "TA"]
[PlyCount "30"]
[EventDate "2022.05.25"]
[EventType "tourn"]
[EventCountry "DEN"]
[SourceTitle "playchess.com"]
[Source "ChessBase"]
[SourceQuality "1"]
[TimeControl "40/5400+30:1800+30"]

{[%evp 29,30,0,0]} 1. e4 {[%emt 0:00:01] Fernandez,D} e5 {[%emt 0:00:09]} 2. Nf3 {[%emt 0:00:17]} Nc6 {[%emt 0:00:13]} 3. Bc4 {[%emt 0:01:09]} Bc5 {[%emt 0:00:50]} 4. c3 {[%emt 0:01:31]} Nf6 {[%emt 0:00:15]} 5. d4 {[%emt 0:01:53]} exd4 {[%emt 0:00:17]} 6. cxd4 {[%emt 0:00:13]} Bb4+ {[%emt 0:00:09]} 7. Bd2 {[%emt 0:00:11]} Bxd2+ {[%emt 0:01:30]} 8. Nbxd2 {[%emt 0:00:16]} d5 {[%emt 0:00:30]} 9. exd5 {[%emt 0:00:16]} Nxd5 {[%emt 0:00:17]} 10. Qb3 {[%emt 0:00:56]} Na5 {[%emt 0:01:33]} 11. Qa4+ {[%emt 0:00:07]} Nc6 {[%emt 0:00:10]} 12. Qb3 {[%emt 0:04:59]} Na5 {[%emt 0:00:19]} 13. Qa4+ {[%emt 0:00:04]} Nc6 {[%emt 0:00:08]} 14. Qb3 {[%emt 0:00:08] [#]} Na5 $146 {[%emt 0:00:06]} ({Predecessor:} 14... Nce7 15. O-O O-O 16. Rfe1 c6 17. Ne4 Nb6 18. Bd3 Ned5 19. Nc5 Nf6 20. Rac1 Rb8 21. Qa3 a6 22. Qb3 Qc7 23. Ne4 Nfd5 24. Nc3 Qd6 25. Be4 {½-½ (36) Jones,G (2640)-Karjakin,S (2753) Wijk aan Zee 2018 CBM 183 [Fernandez,D]}) 15. Qa4+ {[%emt 0:00:13]} Nc6 $1 {[%emt 0:00:09]} 1/2-1/2

[Event "Fredericia IM 2022"]
[Site "Fredericia"]
[Date "2022.05.29"]
[Round "8.2"]
[White "Thorsbro, Peter"]
[Black "Ramsdal, Jens Albert"]
[Result "1-0"]
[ECO "A40"]
[WhiteElo "2192"]
[BlackElo "2267"]
[Annotator "TA"]
[PlyCount "147"]
[EventDate "2022.05.25"]
[EventType "tourn"]
[EventCountry "DEN"]
[SourceTitle "playchess.com"]
[Source "ChessBase"]
[SourceQuality "1"]
[TimeControl "40/5400+30:1800+30"]

{[%evp 9,147,23,31,24,24,28,20,18,26,22,17,21,26,17,15,0,22,29,52,35,27,52,69,58,53,54,81,37,31,43,144,123,176,175,166,129,122,130,128,129,133,111,131,119,178,174,174,176,150,160,185,164,164,145,181,161,152,150,248,251,363,352,328,316,432,434,618,599,576,564,552,455,1297,1294,1113,1103,29947,12849,5065,550,375,375,299,130,130,130,137,8,8,8,8,8,8,8,8,8,8,8,8,8,8,8,8,8,25,0,0,0,36,0,0,8,29969,29970,29970,29971,29971,29971,29972,29973,29973,29974,29979,29975,29976,29977,29977,29978,29979,29980,29980,29981,29981,29982,29982,29983,29983,29983,29983,29983]} 1. d4 {[%emt 0:00:02]} e6 {[%emt 0:00:15]} 2. Nf3 {[%emt 0:00:08]} c5 {[%emt 0:05:51]} 3. g3 {[%emt 0:02:29]} Nc6 {[%emt 0:05:06]} 4. Bg2 {[%emt 0:00:21]} Qb6 {[%emt 0:03:53]} 5. e3 {[%emt 0:01:25]} Nf6 {[%emt 0:00:34]} 6. O-O {[%emt 0:00:14] A43: Schmid Benoni.} Be7 7. c4 {[%emt 0:01:11][%cal Bc2c4,Bc4c5][%mdl 32]} cxd4 {[%emt 0:07:59]} 8. exd4 {[%emt 0:00:50] The position is equal.} d5 {[%emt 0:00:12] [#]} 9. c5 $146 {[%emt 0:00:41]} ({Predecessor:} 9. Nc3 dxc4 10. Ne5 Nxe5 11. dxe5 Nd7 12. Qg4 Kf8 13. Re1 Qc5 14. Bf4 h5 15. Qe2 {1-0 (35) Hernandez Amura,G (1851)-Salvatti,D (2112) Mar del Plata 2012}) 9... Qd8 {[%emt 0:01:41]} 10. Nc3 {[%emt 0:04:43]} O-O $1 {[%emt 0:01:40]} 11. Rb1 {[%emt 0:01:51]} Ne4 {[%emt 0:06:35]} 12. Qc2 {[%emt 0:03:54]} e5 {[%emt 0:13:49] Hoping for ...Bf5.} 13. Nxe4 {[%emt 0:09:25]} (13. dxe5 Bf5 14. Re1 Nxc3 15. Qxf5 Nxb1 16. Qxb1 Bxc5 $17) 13... dxe4 {[%emt 0:00:42]} 14. Qxe4 {[%emt 0:02:09]} ({Weaker is} 14. Nxe5 Nxd4 15. Qd1 (15. Qxe4 $2 Bf5 $19) 15... Qd5 $17) 14... exd4 {[%emt 0:14:07]} 15. b4 {[%emt 0:14:54] Strongly threatening b5.} Bf6 {[%emt 0:00:05]} 16. Bf4 {[%emt 0:05:42]} Re8 {[%emt 0:00:31]} 17. Qd3 {[%emt 0:00:09]} g6 {[%emt 0:09:49]} 18. Qd2 {[%emt 0:00:50]} Bf5 {[%emt 0:00:10]} 19. Rbe1 {[%emt 0:01:20]} Qd7 {[%emt 0:09:00]} ({Better is} 19... a6 $14) 20. b5 $16 {[%emt 0:11:05]} Nd8 {[%emt 0:00:06]} (20... Rxe1 $16 21. Rxe1 Nd8) 21. Rxe8+ $18 {[%emt 0:02:33]} Qxe8 {[%emt 0:00:07]} 22. Nxd4 {[%emt 0:00:42]} Bxd4 {[%emt 0:01:29]} 23. Qxd4 {[%emt 0:03:44] Qf6 is the strong threat.} Ne6 {[%emt 0:01:43]} 24. Qb4 {[%emt 0:02:04] White is much more active.} Nxf4 {[%emt 0:00:10]} 25. gxf4 {[%emt 0:00:21] aiming for Re1.} Rb8 {[%emt 0:02:48]} 26. Re1 {[%emt 0:02:35]} Qf8 {[%emt 0:00:01]} (26... Qd7 $16) 27. Qc3 {[%emt 0:02:42]} Rc8 {[%emt 0:01:52]} 28. c6 {[%emt 0:01:16] And now c7 would win.} ({And not} 28. Bxb7 Rxc5 29. Qa5 Qd6 $11) 28... bxc6 {[%emt 0:00:09]} 29. bxc6 {[%emt 0:00:03]} Qd6 {[%emt 0:01:50]} 30. Qe5 {[%emt 0:00:42]} Qxe5 {[%emt 0:01:46]} 31. fxe5 {[%emt 0:04:06][%mdl 4096] Endgame KRB-KRB} ({But not} 31. Rxe5 Kf8 $16) 31... Kf8 {[%emt 0:00:06]} 32. f4 {[%emt 0:01:55]} Ke7 {[%emt 0:00:02]} 33. Re3 {[%emt 0:04:03]} Be6 {[%emt 0:02:12]} (33... f6 $16 34. Rc3 fxe5) 34. Ra3 {[%emt 0:00:33]} Rc7 {[%emt 0:00:24]} (34... Ra8 {was worth a try.} 35. Kf2 a6) 35. Ra4 {[%emt 0:00:32]} f6 {[%emt 0:00:18]} 36. Kf2 {[%emt 0:00:39]} fxe5 {[%emt 0:03:13]} 37. fxe5 {[%emt 0:00:03]} g5 {[%emt 0:00:28]} (37... Kd8 $142 38. Ke3 Rf7) 38. Ke3 {[%emt 0:00:31]} h5 {[%emt 0:00:29]} 39. a3 {[%emt 0:00:43]} Bc8 {[%emt 0:00:55]} 40. Bd5 {[%emt 0:01:27] Black must now prevent Kd4.} Be6 {[%emt 0:00:26]} (40... Kd8 $142 41. Kd4 Bh3) 41. Kd4 {[%emt 0:37:56]} h4 {[%emt 0:32:36]} 42. Rb4 {[%emt 0:00:27] Intending Rb7 and mate.} Bc8 {[%emt 0:01:50] [#] Prevents Rb7.} 43. Rb7 $1 {[%emt 0:03:02][%mdl 512]} Kd8 {[%emt 0:00:01] [#]} 44. Rxc7 {[%emt 0:00:18]} (44. e6 $142 $1 {[%cal Od4e5] White wants to mate with Ke5!} Bxe6 (44... Re7 45. Ke5) 45. Rxc7 Kxc7 46. Bxe6 Kxc6 47. Bg4) 44... Kxc7 {[%emt 0:00:02] KB-KB} 45. Kc5 {[%emt 0:00:28]} Bf5 {[%emt 0:00:57] [#]} 46. e6 {[%emt 0:00:31]} (46. a4 $1 $18 {is the precise move to win.}) 46... g4 $16 {[%emt 0:01:20]} 47. e7 {[%emt 0:02:09]} Bg6 {[%emt 0:00:07]} 48. Be6 {[%emt 0:01:14]} ({White should play} 48. Kb5 $16) 48... g3 $11 {[%emt 0:00:38]} 49. hxg3 {[%emt 0:00:03]} hxg3 {[%emt 0:00:06] ( -> ...g2)} 50. Bd5 {[%emt 0:00:20]} a6 {[%emt 0:04:01]} 51. Bg2 {[%emt 0:00:51]} Bf7 {[%emt 0:00:18]} 52. Bf3 {[%emt 0:01:45]} Be8 $1 {[%emt 0:00:07]} 53. Kb4 {[%emt 0:00:16] Ka5 would kill now.} Kb6 {[%emt 0:01:17]} 54. Kc4 {[%emt 0:00:00]} Kc7 {[%emt 0:00:00]} 55. Kc5 {[%emt 0:00:00]} Bf7 {[%emt 0:00:00]} 56. Be4 {[%emt 0:00:00]} Be8 $1 {[%emt 0:00:00]} 57. Kd4 {[%emt 0:00:00]} Kd6 {[%emt 0:00:00]} 58. Kc4 {[%emt 0:00:00]} Kc7 {[%emt 0:00:00]} 59. Kd4 {[%emt 0:02:04] Threatening mate with Ke5.} Kd6 {[%emt 0:00:00]} 60. Ke3 {[%emt 0:01:49]} Kxe7 $2 {[%emt 0:00:00][%mdl 8192] A mistake that costs the game.} (60... Bf7 $11) 61. c7 {[%emt 0:00:35] White mates.} Bd7 {[%emt 0:00:00]} 62. Bb7 {[%emt 0:00:08]} a5 {[%emt 0:00:00]} 63. a4 {[%emt 0:00:51]} Kd6 {[%emt 0:00:00]} 64. c8=Q {[%emt 0:00:10]} Bxc8 {[%emt 0:00:00]} 65. Bxc8 {[%emt 0:00:10] KB-KPP} Ke5 {[%emt 0:00:00]} 66. Kf3 {[%emt 0:00:11]} Kd4 {[%emt 0:00:00]} 67. Kxg3 {[%emt 0:00:08] KB-KP} Ke3 {[%emt 0:00:00]} 68. Bb7 {[%emt 0:00:15]} Kd4 {[%emt 0:00:00]} 69. Kf4 {[%emt 0:00:18]} Kc5 {[%emt 0:00:00]} 70. Ke5 {[%emt 0:00:36]} Kb6 {[%emt 0:00:00]} 71. Bc8 {[%emt 0:00:11]} Kc6 {[%emt 0:00:00]} 72. Kd4 {[%emt 0:00:15]} Kd6 {[%emt 0:00:00]} 73. Kc4 {[%emt 0:00:17]} Kc6 {[%emt 0:00:00]} 74. Bg4 {[%emt 0:00:07] Weighted Error Value: White=0.24 (precise) /Black=0.50} 1-0